fUSD/lending_fUSD_20260314
["ID","MTS","AMOUNT","RATE_DAILY","PERIOD"]
[408366312,1773502243321,-861.19947126,0.00017072,2]
[408366313,1773502243334,-40584.57756553,0.00017072,2]
[408366314,1773502243568,-2818.88970174,0.00017072,2]
[408366319,1773502246205,-20334.54452643,0.00017072,2]
[408366320,1773502246216,-920.4035,0.00017072,2]
[408366321,1773502246229,-266.180693,0.00017072,2]
[408366322,1773502246240,-2070.0,0.00017072,2]
[408366327,1773502270256,5533.0,0.000136,5]
[408366355,1773503192059,543.04,7.68e-05,2]
[408366356,1773503192261,543.04,8.084e-05,2]
[408366357,1773503192461,543.04,8.488e-05,2]
[408366358,1773503192648,543.04,8.892e-05,2]
[408366359,1773503193066,543.04,9.296e-05,2]
[408366360,1773503193289,543.04,9.701e-05,2]
[408366361,1773503193514,543.04,0.00010105,2]
[408366362,1773503193708,543.04,0.00010509,2]
[408366363,1773503193900,543.04,0.00010913,2]
[408366364,1773503194110,543.04,0.00011317,2]
[408366365,1773503194317,543.04,0.00011722,2]
[408366366,1773503194536,543.04,0.00012126,2]
[408366367,1773503194756,543.04,0.0001253,2]
[408366368,1773503194974,543.04,0.00012934,2]
[408366369,1773503195176,543.04,0.00013338,2]
[408366370,1773503195385,543.04,0.00013742,2]
[408366377,1773503339286,270.56161537,0.00014027,2]
[408366392,1773503377235,170.81,0.00012169,2]
[408366398,1773503431376,-323.0,0.00014147,2]
[408366400,1773503431387,-220.04,0.00014147,2]
[408366401,1773503431397,-250.0,0.00014349,2]
[408366402,1773503431407,-543.04,0.00014551,2]
[408366403,1773503431416,-166.49782901,0.00014556,2]
[408366404,1773503431425,-290.72229401,0.00014567,7]
[408366405,1773503431437,-121.28163499,0.00014567,7]
[408366406,1773503431447,-253.89066682,0.00014656,2]
[408366407,1773503431456,-300.0,0.00014863,2]
[408366408,1773503431466,-543.04,0.00014955,2]
[408366409,1773503431476,-600.0,0.0001496,2]
[408366410,1773503431485,-300.0,0.00015,2]
[408366411,1773503431495,-1200.0,0.00015,2]
[408366412,1773503431505,-300.0,0.00015,2]
[408366413,1773503431515,-300.0,0.00015,2]
[408366414,1773503431525,-1200.0,0.00015,2]
[408366415,1773503431534,-300.0,0.00015,2]
[408366416,1773503431546,-618.78769819,0.00015001,2]
[408366417,1773503431570,-6635.68918168,0.00015001,2]
[408366418,1773503431580,-2492.23161411,0.00015154,2]
[408366419,1773503431591,-247.3325322,0.00015302,2]
[408366420,1773503431601,-808.0,0.00015334,2]
[408366421,1773503431611,-543.04,0.00015359,2]
[408366422,1773503431622,-1852.42,0.0001544,2]
[408366423,1773503431632,-5053.72605619,0.00015561,2]
[408366424,1773503431641,-600.0,0.00015561,2]
[408366425,1773503431651,-193.63757919,0.00015561,2]
[408366427,1773503431660,-250.0,0.00015561,2]
[408366428,1773503431669,-300.67436292,0.00015561,2]
[408366429,1773503431679,-1619.36,0.00015634,2]
[408366430,1773503431689,-3240.0,0.00015661,2]
[408366431,1773503431698,-342.96,0.00015743,2]
[408366432,1773503431707,-11149.12,0.00015807,2]
[408366433,1773503431717,-200.0,0.00015847,2]
[408366434,1773503431727,-300.0,0.00015953,2]
[408366435,1773503431738,-1600.0,0.00015954,2]
[408366436,1773503431748,-19999.99,0.00015954,2]
[408366437,1773503431758,-9998.99036386,0.00016042,2]
[408366438,1773503431767,-2000.0,0.00016046,2]
[408366439,1773503431778,-250.0,0.00016083,2]
[408366440,1773503431788,-2000.0,0.00016121,2]
[408366441,1773503431798,-550.35,0.00016202,2]
[408366442,1773503431807,-5000.0,0.00016217,2]
[408366443,1773503431817,-5000.0,0.00016217,2]
[408366444,1773503431826,-5000.0,0.00016242,2]
[408366445,1773503431836,-600.0,0.00016242,2]
[408366446,1773503431845,-300.0,0.00016242,2]
[408366447,1773503431854,-600.0,0.00016242,2]
[408366448,1773503431863,-287.94,0.00016264,2]
[408366449,1773503431873,-1793.18195426,0.00016347,2]
[408366450,1773503431883,-9000.0,0.00016351,2]
[408366451,1773503431892,-500.0,0.00016417,2]
[408366452,1773503431901,-414.0,0.00016417,2]
[408366453,1773503431911,-420.0,0.00016417,2]
[408366454,1773503431920,-1680.0,0.000165,2]
[408366455,1773503431929,-500.0,0.00016691,2]
[408366456,1773503431939,-800.0,0.000167,6]
[408366457,1773503431948,-301.0,0.00016783,2]
[408366458,1773503431958,-1940.181,0.00016783,2]
[408366459,1773503431968,-177.261,0.00016783,2]
[408366460,1773503431979,-1600.0,0.000168,6]
[408366461,1773503431989,-176.14135952,0.0001682,2]
[408366462,1773503431999,-396.21,0.00016822,2]
[408366463,1773503432008,-13786.09032341,0.00016862,2]
[408366464,1773503432018,-7249.90451609,0.00016873,2]
[408366465,1773503432028,-620.74657785,0.00016873,2]
[408366466,1773503432038,-1787.92874728,0.00016873,2]
[408366467,1773503432049,-2400.0,0.000169,6]
[408366468,1773503432058,-151.0,0.00016952,2]
[408366469,1773503432067,-200.0,0.00016952,2]
[408366470,1773503432077,-151.0,0.00016952,2]
[408366471,1773503432086,-151.0,0.00016952,2]
[408366472,1773503432095,-151.0,0.00016952,2]
[408366473,1773503432104,-151.0,0.00016952,2]
[408366474,1773503432114,-151.0,0.00016952,2]
[408366475,1773503432124,-151.0,0.00016952,2]
[408366476,1773503432133,-151.0,0.00016952,2]
[408366477,1773503432143,-151.0,0.00016952,2]
[408366478,1773503432152,-151.0,0.00016952,2]
[408366479,1773503432161,-151.0,0.00016952,2]
[408366480,1773503432174,-29317.9854,0.00016962,2]
[408366481,1773503432185,-208.76722989,0.00016962,2]
[408366482,1773503432195,-500.0,0.00016965,2]
[408366483,1773503432204,-150.0,0.00016968,2]
[408366484,1773503432214,-150.0,0.00016968,2]
[408366485,1773503432224,-500.0,0.00016968,2]
[408366486,1773503432234,-254.00301513,0.00016968,2]
[408366487,1773503432245,-500.0,0.00016968,2]
[408366488,1773503432255,-150.0,0.00016968,2]
[408366489,1773503432264,-150.0,0.00016968,2]
[408366490,1773503432274,-150.0,0.00016968,2]
[408366491,1773503432285,-270.48763024,0.00016968,2]
[408366492,1773503432295,-200.0,0.00016968,2]
[408366493,1773503432305,-500.0,0.00016968,2]
[408366494,1773503432315,-500.0,0.00016968,2]
[408366495,1773503432325,-500.0,0.00016968,2]
[408366496,1773503432334,-500.0,0.00016968,2]
[408366497,1773503432343,-150.0,0.00016968,2]
[408366498,1773503432353,-150.0,0.00016968,2]
[408366499,1773503432362,-500.0,0.00016968,2]
[408366500,1773503432372,-500.0,0.00016968,2]
[408366501,1773503432382,-152.11749932,0.00016968,2]
[408366502,1773503432391,-150.0,0.00016968,2]
[408366503,1773503432401,-500.0,0.00016968,2]
[408366504,1773503432410,-731.8971,0.00016971,2]
[408366505,1773503432419,-1000.0,0.00016971,2]
[408366506,1773503432429,-500.0,0.00016971,2]
[408366507,1773503432438,-500.0,0.00016971,2]
[408366508,1773503432448,-500.0,0.00016971,2]
[408366509,1773503432458,-500.0,0.00016971,2]
[408366510,1773503432467,-500.0,0.00016971,2]
[408366511,1773503432476,-500.0,0.00016971,2]
[408366512,1773503432486,-500.0,0.00016971,2]
[408366513,1773503432495,-500.0,0.00016971,2]
[408366514,1773503432505,-500.0,0.00016971,2]
[408366515,1773503432517,-800.21,0.00016971,2]
[408366516,1773503432527,-500.0,0.00016971,2]
[408366517,1773503432536,-500.0,0.00016971,2]
[408366518,1773503432551,-500.0,0.00016971,2]
[408366519,1773503432560,-500.0,0.00016971,2]
[408366520,1773503432570,-500.0,0.00016971,2]
[408366521,1773503432579,-500.0,0.00016971,2]
[408366522,1773503432590,-500.0,0.00016971,2]
[408366523,1773503432600,-500.0,0.00016971,2]
[408366524,1773503432609,-500.0,0.00016971,2]
[408366525,1773503432622,-500.0,0.00016971,2]
[408366526,1773503432632,-500.0,0.00016971,2]
[408366527,1773503432641,-500.0,0.00016971,2]
[408366528,1773503432651,-500.0,0.00016971,2]
[408366529,1773503432659,-500.0,0.00016971,2]
[408366530,1773503432669,-500.0,0.00016971,2]
[408366531,1773503432679,-500.0,0.00016971,2]
[408366532,1773503432688,-500.0,0.00016971,2]
[408366533,1773503432698,-500.0,0.00016971,2]
[408366534,1773503432707,-507.73038979,0.00016971,2]
[408366535,1773503432716,-500.0,0.00016971,2]
[408366536,1773503432726,-500.0,0.00016971,2]
[408366537,1773503432736,-500.0,0.00016971,2]
[408366538,1773503432746,-500.0,0.00016971,2]
[408366539,1773503432756,-500.0,0.00016971,2]
[408366540,1773503432774,-500.0,0.00016971,2]
[408366541,1773503432786,-500.0,0.00016971,2]
[408366542,1773503432795,-500.0,0.00016971,2]
[408366543,1773503432805,-500.0,0.00016971,2]
[408366544,1773503432814,-500.0,0.00016971,2]
[408366545,1773503432824,-500.0,0.00016971,2]
[408366546,1773503432834,-500.0,0.00016971,2]
[408366547,1773503432844,-500.0,0.00016971,2]
[408366548,1773503432853,-500.0,0.00016971,2]
[408366549,1773503432863,-500.0,0.00016971,2]
[408366550,1773503432872,-554.07454248,0.00016971,2]
[408366551,1773503432881,-617.563246,0.00016971,2]
[408366552,1773503432891,-500.0,0.00016971,2]
[408366553,1773503432900,-500.0,0.00016971,2]
[408366554,1773503432909,-500.0,0.00016971,2]
[408366555,1773503432920,-500.0,0.00016971,2]
[408366556,1773503432929,-500.0,0.00016971,2]
[408366557,1773503432939,-617.563246,0.00016971,2]
[408366558,1773503432948,-500.0,0.00016971,2]
[408366559,1773503432958,-151.0,0.00016971,2]
[408366560,1773503432968,-617.563246,0.00016971,2]
[408366561,1773503432978,-617.563246,0.00016971,2]
[408366562,1773503432987,-466.67085441,0.00016971,2]
[408366563,1773503432997,-500.0,0.00016971,2]
[408366564,1773503433007,-159.548783,0.00016971,2]
[408366565,1773503433016,-500.0,0.00016971,2]
[408366566,1773503433027,-500.0,0.00016971,2]
[408366567,1773503433036,-500.0,0.00016971,2]
[408366568,1773503433046,-159.548783,0.00016971,2]
[408366569,1773503433056,-159.548783,0.00016971,2]
[408366570,1773503433065,-159.548783,0.00016971,2]
[408366571,1773503433075,-151.0,0.00016971,2]
[408366572,1773503433084,-500.0,0.00016971,2]
[408366573,1773503433094,-500.0,0.00016971,2]
[408366574,1773503433103,-500.0,0.00016971,2]
[408366575,1773503433112,-500.0,0.00016971,2]
[408366576,1773503433122,-196.667589,0.00016971,2]
[408366577,1773503433132,-196.667589,0.00016971,2]
[408366578,1773503433141,-196.667589,0.00016971,2]
[408366579,1773503433150,-196.667589,0.00016971,2]
[408366580,1773503433160,-500.0,0.00016971,2]
[408366581,1773503433169,-500.0,0.00016971,2]
[408366582,1773503433179,-500.0,0.00016971,2]
[408366583,1773503433189,-500.0,0.00016971,2]
[408366584,1773503433198,-500.0,0.00016971,2]
[408366585,1773503433208,-500.0,0.00016971,2]
[408366586,1773503433217,-500.0,0.00016971,2]
[408366587,1773503433227,-500.0,0.00016971,2]
[408366588,1773503433236,-500.0,0.00016971,2]
[408366589,1773503433246,-500.0,0.00016971,2]
[408366590,1773503433255,-500.0,0.00016971,2]
[408366591,1773503433265,-500.0,0.00016971,2]
[408366592,1773503433276,-210.12968119,0.00016971,2]
[408366593,1773503433285,-500.0,0.00016971,2]
[408366594,1773503433295,-500.0,0.00016971,2]
[408366595,1773503433305,-305.32349247,0.00016971,2]
[408366596,1773503433314,-268.07392433,0.00016971,2]
[408366597,1773503433324,-500.0,0.00016971,2]
[408366598,1773503433334,-500.0,0.00016971,2]
[408366599,1773503433343,-500.0,0.00016971,2]
[408366600,1773503433353,-500.0,0.00016971,2]
[408366601,1773503433363,-500.0,0.00016971,2]
[408366602,1773503433372,-196.74273373,0.00016971,2]
[408366603,1773503433382,-500.0,0.00016971,2]
[408366604,1773503433391,-196.23280247,0.00016971,2]
[408366605,1773503433400,-500.0,0.00016971,2]
[408366606,1773503433410,-500.0,0.00016971,2]
[408366607,1773503433420,-500.0,0.00016971,2]
[408366608,1773503433430,-283.05226714,0.00016971,2]
[408366609,1773503433440,-500.0,0.00016971,2]
[408366610,1773503433449,-500.0,0.00016971,2]
[408366611,1773503433458,-500.0,0.00016971,2]
[408366612,1773503433468,-500.0,0.00016971,2]
[408366613,1773503433477,-500.0,0.00016971,2]
[408366614,1773503433487,-500.0,0.00016971,2]
[408366615,1773503433497,-500.0,0.00016971,2]
[408366616,1773503433506,-500.0,0.00016971,2]
[408366617,1773503433516,-500.0,0.00016971,2]
[408366618,1773503433525,-500.0,0.00016971,2]
[408366619,1773503433535,-500.0,0.00016971,2]
[408366620,1773503433549,-500.0,0.00016971,2]
[408366621,1773503433558,-500.0,0.00016971,2]
[408366622,1773503433567,-500.0,0.00016971,2]
[408366623,1773503433576,-500.0,0.00016971,2]
[408366624,1773503433587,-500.0,0.00016971,2]
[408366625,1773503433597,-500.0,0.00016971,2]
[408366626,1773503433607,-500.0,0.00016971,2]
[408366627,1773503433617,-500.0,0.00016971,2]
[408366628,1773503433627,-500.0,0.00016971,2]
[408366629,1773503433636,-500.0,0.00016971,2]
[408366630,1773503433645,-500.0,0.00016971,2]
[408366631,1773503433655,-500.0,0.00016971,2]
[408366632,1773503433664,-273.54536072,0.00016971,2]
[408366633,1773503433674,-500.0,0.00016971,2]
[408366634,1773503433683,-500.0,0.00016971,2]
[408366635,1773503433692,-500.0,0.00016971,2]
[408366636,1773503433704,-500.0,0.00016971,2]
[408366637,1773503433714,-500.0,0.00016971,2]
[408366638,1773503433723,-500.0,0.00016971,2]
[408366639,1773503433733,-500.0,0.00016971,2]
[408366640,1773503433744,-500.0,0.00016971,2]
[408366641,1773503433754,-500.0,0.00016971,2]
[408366642,1773503433764,-500.0,0.00016971,2]
[408366643,1773503433773,-500.0,0.00016971,2]
[408366644,1773503433783,-500.0,0.00016971,2]
[408366645,1773503433792,-500.0,0.00016971,2]
[408366646,1773503433802,-500.0,0.00016971,2]
[408366647,1773503433811,-500.0,0.00016971,2]
[408366648,1773503433821,-500.0,0.00016971,2]
[408366649,1773503433830,-500.0,0.00016971,2]
[408366650,1773503433839,-500.0,0.00016971,2]
[408366651,1773503433849,-500.0,0.00016971,2]
[408366652,1773503433857,-500.0,0.00016971,2]
[408366653,1773503433867,-500.0,0.00016971,2]
[408366654,1773503433876,-500.0,0.00016971,2]
[408366655,1773503433886,-500.0,0.00016971,2]
[408366656,1773503433895,-295.63493451,0.00016971,2]
[408366657,1773503433904,-500.0,0.00016971,2]
[408366658,1773503433913,-500.0,0.00016971,2]
[408366659,1773503433925,-500.0,0.00016971,2]
[408366660,1773503433934,-500.0,0.00016971,2]
[408366661,1773503433944,-500.0,0.00016971,2]
[408366662,1773503433953,-500.0,0.00016971,2]
[408366663,1773503433963,-153.1314123,0.00016972,2]
[408366664,1773503433972,-151.0,0.00016972,2]
[408366665,1773503433981,-151.0,0.00016972,2]
[408366666,1773503433991,-151.0,0.00016972,2]
[408366667,1773503434000,-151.0,0.00016972,2]
[408366668,1773503434010,-151.0,0.00016972,2]
[408366669,1773503434019,-151.0,0.00016972,2]
[408366670,1773503434029,-151.0,0.00016972,2]
[408366671,1773503434039,-151.0,0.00016972,2]
[408366672,1773503434048,-151.0,0.00016972,2]
[408366673,1773503434058,-151.0,0.00016972,2]
[408366674,1773503434068,-151.0,0.00016972,2]
[408366675,1773503434078,-151.0,0.00016972,2]
[408366676,1773503434087,-151.0,0.00016972,2]
[408366677,1773503434097,-151.0,0.00016972,2]
[408366678,1773503434107,-151.0,0.00016972,2]
[408366679,1773503434117,-151.0,0.00016972,2]
[408366680,1773503434127,-151.0,0.00016972,2]
[408366681,1773503434137,-151.0,0.00016972,2]
[408366682,1773503434146,-151.0,0.00016972,2]
[408366683,1773503434156,-151.0,0.00016972,2]
[408366684,1773503434165,-617.563246,0.00016972,2]
[408366685,1773503434175,-617.563246,0.00016972,2]
[408366686,1773503434184,-152.5029,0.00016972,2]
[408366687,1773503434194,-617.563246,0.00016972,2]
[408366688,1773503434203,-617.563246,0.00016972,2]
[408366689,1773503434213,-159.548783,0.00016972,2]
[408366690,1773503434222,-159.548783,0.00016972,2]
[408366691,1773503434232,-159.548783,0.00016972,2]
[408366692,1773503434241,-159.548783,0.00016972,2]
[408366693,1773503434440,-151.0,0.00016972,2]
[408366694,1773503434450,-196.667589,0.00016972,2]
[408366695,1773503434459,-196.667589,0.00016972,2]
[408366696,1773503434469,-196.667589,0.00016972,2]
[408366697,1773503434478,-196.667589,0.00016972,2]
[408366698,1773503434487,-67379.7773696,0.00016972,2]
[408366699,1773503434503,-41501.10187621,0.00016972,2]
[408366700,1773503434515,-61590.90234585,0.00016972,2]
[408366701,1773503434527,-90265.93313793,0.00016972,2]
[408366702,1773503434539,-558.27538772,0.00016972,2]
[408366703,1773503434555,-312.7,0.00016972,2]
[408366708,1773503437567,-166.49782901,0.00015941,2]
[408366709,1773503437576,-2246.56744256,0.00016972,2]
[408366710,1773503437593,-9878.29101091,0.00016972,2]
[408366711,1773503437640,-310.34585588,0.00016972,2]
[408366712,1773503437652,-17263.16004874,0.00016972,2]
[408366713,1773503437663,-7055.0,0.00016972,2]
[408366717,1773503439602,-1106.32747173,0.00016972,2]
[408366720,1773503439666,-24054.77900002,0.00016972,2]
[408366721,1773503439678,-383.45408857,0.00016972,2]
[408366722,1773503439729,-1413.47813135,0.00016972,2]
[408366723,1773503439740,-34289.9707959,0.00016972,2]
[408366727,1773503445397,-533.68589466,0.00016972,2]
[408366728,1773503445410,-10349.27104002,0.00016972,2]
[408366742,1773503446293,-1500.0,0.00016972,2]
[408366745,1773503446303,-414.52,0.00016972,2]
[408366748,1773503446315,-2207.3137,0.00016972,2]
[408366750,1773503446326,-524.0,0.00016972,2]
[408366752,1773503446385,-1013.90818095,0.00016972,2]
[408366753,1773503446446,-50005.0,0.00016972,2]
[408366754,1773503446617,-278.36093269,0.00016972,2]
[408366755,1773503446630,-2011.21213298,0.00016972,2]
[408366756,1773503446647,-594.8605881,0.00016972,2]
[408366963,1773503589918,4847.69254247,0.000131,5]
[408366964,1773503589941,555.41894158,0.000131,5]
[408366965,1773503589962,129.88851595,0.000131,5]
[408366966,1773503590143,425.53042563,0.000125,3]
[408366967,1773503590167,555.41894158,0.000125,3]
[408366968,1773503590188,555.41894158,0.000125,3]
[408366969,1773503590208,555.41894158,0.000125,3]
[408366970,1773503590228,555.41894158,0.000125,3]
[408366971,1773503590248,555.41894158,0.000125,3]
[408366972,1773503590268,555.41894158,0.000125,3]
[408366973,1773503590288,555.41894158,0.000125,3]
[408366974,1773503590308,555.41894158,0.000125,3]
[408366975,1773503590330,664.11804173,0.000125,3]
[408366976,1773503590362,7137.0,0.000119,2]
[408366979,1773503671936,162.47,0.000139,2]
[408366988,1773503961517,3269.93143962,0.00013,2]
[408366994,1773504136479,1466.85205515,0.0001,2]
[408366995,1773504157198,5100.75650523,9.5e-05,3]
[408366996,1773504157220,10000.01,9.5e-05,3]
[408366997,1773504157241,10000.01,9.5e-05,3]
[408366998,1773504157262,10000.01,9.5e-05,3]
[408366999,1773504157284,10000.01,9.5e-05,3]
[408367000,1773504157306,10000.01,9.5e-05,3]
[408367001,1773504157326,10000.01,9.5e-05,3]
[408367002,1773504157348,2540.9121693,9.5e-05,3]
[408367003,1773504159326,1355.67,0.00012559,2]
[408367005,1773504188020,6103.4278307,7.945e-05,2]
[408367006,1773504188042,3896.5821693,7.945e-05,2]
[408367012,1773504339049,-366.70880056,0.00014,2]
[408367013,1773504339162,-308.86589156,0.00014,2]
[408367017,1773504436123,500.0,8.98e-05,2]
[408367018,1773504436548,726.63,8.98e-05,2]
[408367019,1773504438551,500.0,8.98e-05,2]
[408367023,1773504447962,500.0,8.98e-05,2]
[408367024,1773504448135,500.0,8.98e-05,2]
[408367025,1773504448220,507.45359249,8.98e-05,2]
[408367026,1773504449465,500.0,8.98e-05,2]
[408367027,1773504449883,500.0,8.98e-05,2]
[408367028,1773504449934,507.65021538,8.98e-05,2]
[408367029,1773504450363,852.01546365,8.98e-05,2]
[408367030,1773504451881,509.67855918,8.98e-05,2]
[408367031,1773504451905,91.89055517,8.98e-05,2]
[408367034,1773504548197,522.06367637,0.0001398,2]
[408367042,1773504631748,-824.42530788,0.00014,2]
[408367044,1773504631758,-265.0,0.00014,2]
[408367046,1773504631767,-613.66208631,0.00014429,2]
[408367048,1773504631777,-250.0,0.00014429,2]
[408367050,1773504631786,-151.0,0.00014634,2]
[408367052,1773504631797,-151.0,0.00014634,2]
[408367054,1773504631807,-500.0,0.00014717,2]
[408367056,1773504631817,-288.62197158,0.00014761,2]
[408367058,1773504631826,-208.1,0.00014858,2]
[408367060,1773504631836,-150.0,0.00014947,2]
[408367061,1773504631846,-150.0,0.00014999,2]
[408367063,1773504631855,-300.0,0.00014999,2]
[408367065,1773504631865,-180.0,0.00014999,2]
[408367067,1773504631874,-300.0,0.00014999,2]
[408367068,1773504631883,-1200.0,0.00014999,2]
[408367070,1773504631892,-250.0,0.00015,2]
[408367072,1773504631903,-636.90623634,0.00015,2]
[408367073,1773504631919,-607.14364145,0.00015,30]
[408367075,1773504631930,-500.0,0.00015,30]
[408367076,1773504631940,-500.0,0.00015,30]
[408367077,1773504631950,-500.0,0.00015,30]
[408367078,1773504631959,-500.0,0.00015,30]
[408367079,1773504631969,-500.0,0.00015,30]
[408367080,1773504631978,-500.0,0.00015,30]
[408367081,1773504631987,-500.0,0.00015,30]
[408367082,1773504631997,-500.0,0.00015,30]
[408367083,1773504632006,-500.0,0.00015,30]
[408367084,1773504632015,-500.0,0.00015,30]
[408367085,1773504632024,-500.0,0.00015,30]
[408367086,1773504632034,-500.0,0.00015,30]
[408367087,1773504632043,-500.0,0.00015,30]
[408367088,1773504632053,-500.0,0.00015,30]
[408367089,1773504632063,-660.25289702,0.00015,30]
[408367090,1773504632074,-500.0,0.00015,30]
[408367091,1773504632083,-500.0,0.00015,30]
[408367092,1773504632095,-1500.0,0.00015043,2]
[408367093,1773504632104,-166.66,0.00015081,2]
[408367094,1773504632114,-10000.0,0.00015122,2]
[408367095,1773504632124,-1517.64,0.000153,2]
[408367096,1773504632135,-166.66,0.00015399,2]
[408367097,1773504632145,-511.21842005,0.000154,2]
[408367098,1773504632154,-300.0,0.000154,2]
[408367099,1773504632164,-600.0,0.000154,2]
[408367100,1773504632173,-250.0,0.000154,2]
[408367101,1773504632183,-1573.49388816,0.000154,2]
[408367102,1773504632193,-2291.02,0.00015432,2]
[408367103,1773504632202,-2621.54,0.00015432,2]
[408367104,1773504632211,-1979.78,0.00015432,2]
[408367105,1773504632221,-1059.38,0.00015433,2]
[408367106,1773504632230,-191.96,0.0001545,2]
[408367107,1773504632239,-500.0,0.0001545,2]
[408367108,1773504632248,-269.47,0.0001546,2]
[408367109,1773504632258,-28204.93,0.00015514,2]
[408367110,1773504632267,-200.0,0.00015562,2]
[408367111,1773504632278,-151.0,0.00015562,2]
[408367112,1773504632290,-151.0,0.00015562,2]
[408367113,1773504632300,-151.0,0.00015562,2]
[408367114,1773504632310,-151.0,0.00015562,2]
[408367115,1773504632319,-151.0,0.00015562,2]
[408367116,1773504632329,-151.0,0.00015562,2]
[408367117,1773504632338,-151.0,0.00015562,2]
[408367118,1773504632348,-151.0,0.00015562,2]
[408367119,1773504632358,-31305.09,0.00015571,2]
[408367120,1773504632368,-331.86630007,0.00015573,2]
[408367121,1773504632377,-500.0,0.00015573,2]
[408367122,1773504632387,-500.0,0.00015573,2]
[408367123,1773504632397,-500.0,0.00015573,2]
[408367124,1773504632406,-500.0,0.00015573,2]
[408367125,1773504632415,-500.0,0.00015573,2]
[408367126,1773504632425,-500.0,0.00015599,2]
[408367127,1773504632435,-166.66,0.00015716,2]
[408367128,1773504632444,-500.0,0.00015724,2]
[408367129,1773504632453,-2252.98927853,0.00015807,2]
[408367130,1773504632463,-200.0,0.00015877,2]
[408367131,1773504632472,-1501.16,0.00015958,2]
[408367132,1773504632482,-335.23,0.00015987,2]
[408367133,1773504632492,-2825.37,0.00015992,2]
[408367134,1773504632503,-500.0,0.00015998,2]
[408367135,1773504632512,-12407.48129106,0.00016016,2]
[408367136,1773504632522,-166.66,0.00016034,2]
[408367137,1773504632531,-543.15325561,0.00016099,2]
[408367138,1773504632541,-6524.91406449,0.000161,2]
[408367139,1773504632551,-200.0,0.0001611,2]
[408367140,1773504632561,-500.0,0.00016115,2]
[408367141,1773504632570,-500.0,0.00016115,2]
[408367142,1773504632580,-151.0,0.00016116,2]
[408367143,1773504632589,-151.0,0.00016116,2]
[408367144,1773504632600,-370.537948,0.00016116,2]
[408367145,1773504632611,-370.537948,0.00016116,2]
[408367146,1773504632620,-370.537948,0.00016116,2]
[408367147,1773504632630,-370.537948,0.00016116,2]
[408367148,1773504632640,-151.0,0.00016116,2]
[408367149,1773504632649,-151.0,0.00016116,2]
[408367150,1773504632659,-151.0,0.00016116,2]
[408367151,1773504632670,-6945.74,0.00016116,2]
[408367152,1773504632679,-4340.45767549,0.00016116,2]
[408367153,1773504632692,-1591.97232451,0.00016116,2]
[408367154,1773504632703,-999.99,0.00016116,2]
[408367155,1773504632713,-3295.51,0.00016116,2]
[408367156,1773504632724,-40214.17931358,0.00016116,2]
[408367157,1773504632736,-4685.23068642,0.00016116,2]
[408367158,1773504632746,-9999.99,0.00016116,2]
[408367159,1773504632756,-16741.85,0.00016116,2]
[408367160,1773504632765,-150.99,0.00016116,2]
[408367161,1773504632775,-9728.03,0.00016116,2]